bitfinex-derivatives/quotes_SOLF0:USTF0_20251219
["timestamp","ask_amount","ask_price","bid_price","bid_amount"]
[1766114086177,24.12,120.36,120.29,2.65401465]
[1766114087268,51.79401465,120.37,120.31,0.06156078]
[1766114087269,0.05409587,120.34,120.31,0.06156078]
[1766114087470,24.17409587,120.34,120.28,2.65401465]
[1766114087973,31.65719587,120.34,120.27,7.4869]
[1766114088174,31.65719587,120.34,120.28,2.65401465]
[1766114088175,24.17409587,120.34,120.28,2.65401465]
[1766114088365,24.17409587,120.34,120.3,0.06013176]
[1766114089472,24.17409587,120.34,120.3,0.00013176]
[1766114090579,31.65709587,120.34,120.3,0.00013176]
[1766114091079,24.12,120.33,120.3,0.00013176]
[1766114092573,31.6036,120.33,120.3,0.00013176]
[1766114095182,0.05409587,120.34,120.3,0.00013176]
[1766114095577,7.53699587,120.34,120.3,0.00013176]
[1766114096183,31.65699587,120.34,120.3,0.00013176]
[1766114096384,31.6036,120.33,120.3,0.00013176]
[1766114096989,24.12,120.33,120.3,0.00013176]
[1766114099193,0.05409587,120.34,120.3,0.00013176]
[1766114099792,0.05409587,120.34,120.3,7.48543176]
[1766114099982,0.00409587,120.34,120.31,2.65401465]
[1766114100179,49.14,120.37,120.31,2.65401465]
[1766114100485,56.6211,120.37,120.3,16.29401465]
[1766114100680,49.14,120.37,120.3,16.29401465]
[1766114100902,24.12,120.41,120.32,16.29401465]
[1766114101082,73.26,120.41,120.34,2.65401465]
[1766114101285,24.1782284,120.38,120.3,13.73]
[1766114101594,24.1782284,120.38,120.31,2.65401465]
[1766114101595,24.12,120.38,120.31,2.65401465]
[1766114101987,31.6005,120.38,120.31,10.13861465]
[1766114102193,24.12,120.4,120.31,16.41401465]
[1766114102492,24.12,120.4,120.33,2.70002574]
[1766114102692,24.7,120.43,120.35,2.65401465]
[1766114102996,24.7,120.43,120.37,2.65401465]
[1766114103394,0.0587686,120.41,120.39,0.0630212]
[1766114104294,73.84,120.45,120.39,0.0630212]
[1766114104600,24.7,120.44,120.39,0.0630212]
[1766114105303,0.05248599,120.43,120.39,0.0630212]
[1766114105487,24.75248599,120.43,120.39,0.0630212]
[1766114106303,24.7,120.41,120.39,0.0030212]
[1766114106485,24.7,120.41,120.31,62.98]
[1766114107002,24.7,120.4,120.31,62.98]
[1766114107211,24.7,120.4,120.32,13.89]
[1766114107403,0.05627865,120.37,120.35,0.05590702]
[1766114107709,273.98704252,120.5,120.35,13.94590702]
[1766114107910,122.36046937,120.71,120.58,116.1646]
[1766114108210,116.0463,120.71,120.58,49.12]
[1766114108407,116.0563,120.7,120.6,6.30866937]
[1766114108709,0.05497874,120.66,120.64,0.05309859]
[1766114108911,0.05497874,120.66,120.64,0.00309859]
[1766114109307,1.71497874,120.66,120.64,0.00309859]
[1766114109506,117.80997874,120.66,120.64,0.00309859]
[1766114109702,24.7,120.65,120.64,0.00309859]
[1766114110316,0.05497874,120.66,120.64,0.00309859]
[1766114111014,140.84967874,120.66,120.64,0.00309859]
[1766114111200,73.8,120.65,120.64,0.00309859]
[1766114111405,189.9046,120.65,120.64,0.00309859]
[1766114111915,189.9046,120.65,120.53,116.2152]
[1766114111916,24.7,120.64,120.54,116.2054]
[1766114112509,24.7,120.64,120.54,123.6758]
[1766114112913,0.06113182,120.6,120.52,122.52656937]
[1766114113115,24.44,120.61,120.51,123.707]
[1766114113420,24.44,120.6,120.51,123.707]
[1766114113608,24.44,120.6,120.5,116.2419]
[1766114113803,49.08,120.61,120.53,116.2146]
[1766114114007,0.05257663,120.58,120.56,0.04567781]
[1766114115211,0.05257663,120.58,120.52,7.4716]
[1766114115413,0.05257663,120.58,120.51,116.2346]
[1766114116422,0.05257663,120.58,120.5,123.7148]
[1766114116609,0.00341951,120.55,120.53,0.05292686]
[1766114116916,73.52,120.61,120.5,123.7148]
[1766114117520,0.06156257,120.57,120.54,0.05866129]
[1766114118311,24.44,120.64,120.54,1.71866129]
[1766114118514,140.5571,120.64,120.52,122.53366937]
[1766114118919,140.5571,120.64,120.52,6.30866937]
[1766114118920,140.564,120.63,120.52,6.30866937]
[1766114119128,24.44,120.62,120.52,55.34866937]
[1766114119308,0.0529252,120.58,120.56,0.05661827]
[1766114120717,0.0029252,120.58,120.56,0.05661827]
[1766114122420,7.4636,120.66,120.56,1.71661827]
[1766114122720,24.44,120.67,120.56,6.30866937]
[1766114122919,24.44,120.67,120.57,49.04]
[1766114123313,0.05548442,120.63,120.61,0.05834467]
[1766114123510,0.05548442,120.63,120.57,49.04]
[1766114124523,0.05548442,120.63,120.59,0.06016552]
[1766114124725,0.05585226,120.62,120.59,0.06016552]
[1766114125220,7.4641,120.65,120.59,0.06016552]
[1766114126320,0.05321308,120.63,120.59,0.06016552]
[1766114127528,116.142,120.61,120.59,0.00016552]
[1766114128116,24.44,120.6,120.59,0.00016552]
[1766114128320,140.6018,120.59,120.49,59.24017972]
[1766114128525,7.4714,120.53,120.44,1.98676093]
[1766114128725,24.44,120.55,120.44,118.29016093]
[1766114129131,116.2083,120.54,120.44,50.98676093]
[1766114129325,24.44,120.55,120.48,0.05856983]
[1766114129927,31.9101,120.55,120.48,0.05856983]
[1766114130430,0.05742409,120.53,120.48,0.05856983]
[1766114132530,7.52882409,120.53,120.48,0.05856983]
[1766114134726,0.05742409,120.53,120.48,0.05856983]
[1766114136035,24.49742409,120.53,120.48,0.05856983]
[1766114136230,140.71842409,120.53,120.48,0.05856983]
[1766114136536,7.4719,120.52,120.48,0.05856983]
[1766114136927,31.9119,120.52,120.44,51.00676093]
[1766114137123,31.9119,120.52,120.44,1.98676093]
[1766114138026,0.05426297,120.49,120.47,0.06371975]
[1766114138230,0.05426297,120.49,120.47,0.00371975]
[1766114140238,24.49426297,120.49,120.47,0.00371975]
[1766114140446,24.44,120.48,120.47,0.00371975]
[1766114140633,0.05426297,120.49,120.47,0.00371975]
[1766114142242,31.96816297,120.49,120.47,0.00371975]
[1766114142933,24.49426297,120.49,120.47,0.00371975]
[1766114144743,31.96806297,120.49,120.47,0.00371975]
[1766114146045,32.4745,120.48,120.39,7.4793]
[1766114146248,32.4745,120.48,120.39,56.5193]
[1766114146546,32.4745,120.48,120.39,49.04]
[1766114147042,0.06384563,120.45,120.42,0.04847933]
[1766114149946,25.06384563,120.45,120.36,156.2612]
[1766114150151,25.0,120.45,120.36,49.04]
[1766114150347,25.0,120.45,120.34,116.3992]
[1766114150546,7.4767,120.44,120.35,55.08644779]
[1766114150741,7.4767,120.44,120.35,49.04]
[1766114150742,32.4767,120.44,120.35,49.04]
[1766114150942,0.0630953,120.41,120.35,49.04]
[1766114151142,25.0630953,120.41,120.32,88.0]
[1766114151343,0.05815315,120.38,120.32,49.04]
[1766114151540,0.05815315,120.38,120.3,10.22017972]
[1766114151749,25.0,120.4,120.33,0.05675509]
[1766114152551,7.4799,120.39,120.33,0.05675509]
[1766114152852,0.05774439,120.37,120.33,0.05675509]
[1766114156851,25.0,120.36,120.28,7.4863]
[1766114157044,49.08,120.37,120.27,116.4674]
[1766114157259,25.0,120.39,120.29,116.4488]
[1766114157951,0.06246297,120.35,120.29,7.4855]
[1766114159353,0.06246297,120.35,120.27,116.4674]
[1766114159354,0.06246297,120.35,120.27,56.5668]
[1766114159553,0.00043922,120.32,120.27,56.5668]
[1766114160443,0.00043922,120.32,120.28,0.05465937]
[1766114161256,190.4262,120.4,120.28,116.50975937]
[1766114161451,25.0,120.39,120.28,116.4551]
[1766114161957,25.0,120.39,120.31,7.4844]
[1766114162151,25.0,120.39,120.34,0.06043922]
[1766114162351,0.05746682,120.36,120.34,0.06043922]
[1766114162860,0.05746682,120.36,120.34,0.00043922]
[1766114163366,7.4824,120.35,120.27,49.08]
[1766114163561,7.4824,120.35,120.27,56.5667]
[1766114163860,33.3424,120.35,120.27,56.5667]
[1766114164062,7.4832,120.34,120.27,49.08]
[1766114164260,7.4832,120.34,120.25,56.5682]
[1766114164261,0.06143632,120.32,120.25,56.5682]
[1766114165162,0.06143632,120.32,120.25,7.4882]
[1766114165357,0.06143632,120.32,120.23,116.4989]
[1766114165358,7.54573632,120.32,120.23,7.4894]
[1766114165559,0.05711552,120.29,120.2,216.169]
[1766114165758,0.05317047,120.26,120.21,49.08]
[1766114165963,0.00317047,120.26,120.21,49.08]
[1766114166564,0.00317047,120.26,120.22,7.4902]
[1766114166966,0.00317047,120.26,120.23,0.05]
[1766114172571,74.96,120.3,120.23,0.05]
[1766114172773,25.86,120.3,120.24,7.489]
[1766114172970,25.64,120.33,120.24,116.4971]
[1766114173160,232.7406,120.38,120.26,116.4764]
[1766114173161,25.64,120.36,120.26,116.4764]
[1766114173365,25.64,120.36,120.27,165.5643]
[1766114173566,0.00363365,120.32,120.3,0.05317047]
[1766114173762,49.12,120.38,120.3,0.05317047]
[1766114173969,49.12,120.38,120.28,116.4496]
[1766114174165,25.64,120.39,120.28,116.4496]
[1766114174370,25.64,120.39,120.31,7.4846]
[1766114174576,25.64,120.39,120.31,56.5846]
[1766114174777,0.06048274,120.36,120.34,0.06333535]
[1766114175169,25.64,120.42,120.34,0.06333535]
[1766114175371,25.64,120.42,120.31,165.5276]
[1766114175973,25.64,120.42,120.33,7.4833]
[1766114176181,25.64,120.41,120.3,116.4371]
[1766114176381,0.05702679,120.39,120.31,49.1]
[1766114176577,25.64,120.41,120.31,49.1]
[1766114176877,25.64,120.41,120.32,7.4839]
[1766114177268,0.05505378,120.38,120.35,0.06300479]
[1766114177480,0.05505378,120.38,120.35,0.06049877]
[1766114177974,25.64,120.42,120.35,0.06049877]
[1766114178569,116.3343,120.41,120.35,0.00049877]
[1766114178777,25.64,120.4,120.35,0.00049877]
[1766114179277,25.64,120.39,120.35,0.00049877]
[1766114179671,0.06230527,120.38,120.35,0.00049877]
[1766114182892,0.00230527,120.38,120.35,0.00049877]
[1766114183383,25.64,120.43,120.35,0.00049877]
[1766114183588,25.64,120.43,120.34,49.1]
[1766114183888,33.1174,120.43,120.34,49.1]
[1766114184182,0.06344312,120.4,120.37,0.05468542]
[1766114184483,0.06344312,120.4,120.37,0.00468542]
[1766114186284,25.64,120.38,120.29,116.4478]
[1766114186491,25.64,120.38,120.28,116.4588]
[1766114186787,25.64,120.41,120.32,116.4183]
[1766114186975,25.64,120.41,120.33,116.4096]
[1766114187381,0.06105792,120.38,120.36,0.05996752]
[1766114187582,0.06105792,120.38,120.33,49.08]
[1766114187988,25.70105792,120.38,120.32,49.08]
[1766114188285,25.64,120.38,120.31,7.4843]
[1766114188484,0.05549569,120.36,120.33,0.06226903]
[1766114193185,0.05549569,120.36,120.33,0.00226903]
[1766114193486,25.69549569,120.36,120.33,0.00226903]
[1766114194075,25.64,120.35,120.28,7.4864]
[1766114194281,25.64,120.35,120.26,49.08]
[1766114194687,33.1235,120.33,120.26,56.5673]
[1766114194891,25.64,120.33,120.23,116.5059]
[1766114195080,25.64,120.33,120.24,6.11808268]
[1766114195287,0.05778807,120.29,120.25,6.11808268]
[1766114195587,0.05778807,120.29,120.2,123.81016163]
[1766114195779,0.00224519,120.26,120.21,171.72457961]
[1766114195979,0.00224519,120.26,120.22,6.12127961]
[1766114196375,25.64,120.31,120.22,122.63477961]
[1766114196579,25.64,120.31,120.23,6.12127961]
[1766114196888,33.1261,120.29,120.21,56.5705]
[1766114197086,33.1261,120.29,120.22,6.10229545]
[1766114197291,25.64,120.28,120.21,7.4905]
[1766114197492,0.05382882,120.27,120.24,0.05776398]
[1766114198292,0.05382882,120.27,120.2,7.4914]
[1766114198485,0.05382882,120.27,120.21,6.09923546]
[1766114198798,33.18122882,120.27,120.19,1.92965123]
[1766114198983,25.64,120.26,120.19,1.92965123]
[1766114199391,0.05408331,120.24,120.16,56.5936]
[1766114199594,0.05306496,120.21,120.16,56.5936]
[1766114200090,0.05306496,120.21,120.16,165.673]
[1766114200288,0.05306496,120.21,120.16,49.1]
[1766114201080,0.05306496,120.21,120.13,6.31245401]
[1766114201396,25.64,120.25,120.16,49.1]
[1766114201695,33.1293,120.24,120.16,49.1]
[1766114202293,0.06251964,120.21,120.19,0.05287733]
[1766114202683,0.06251964,120.21,120.19,0.00287733]
[1766114204984,25.74251964,120.21,120.19,0.00287733]
[1766114205694,25.74251964,120.21,120.12,7.4964]
[1766114205997,25.68,120.21,120.12,7.4964]
[1766114206191,7.4919,120.2,120.1,13.80995401]
[1766114206397,25.68,120.19,120.1,7.4975]
[1766114206703,0.06379301,120.16,120.1,7.4975]
[1766114207593,0.00379301,120.16,120.1,116.6309]
[1766114207795,25.68,120.22,120.11,116.6193]
[1766114208691,25.68,120.21,120.13,7.4958]
[1766114208897,0.06067903,120.18,120.15,0.05307667]
[1766114209097,0.00067903,120.18,120.15,0.05307667]
[1766114214003,25.68067903,120.18,120.15,0.00307667]
[1766114214504,25.68067903,120.18,120.06,172.11535401]
[1766114214706,25.68067903,120.18,120.04,216.4302]
[1766114214707,25.68,120.18,120.04,96.32]
[1766114214923,116.6305,120.11,120.0,26.01]
[1766114215207,49.18,120.11,120.02,26.01]
[1766114215398,49.18,120.11,120.03,26.01]
[1766114215696,0.00026338,120.08,120.05,26.06381259]
[1766114215908,49.18,120.13,120.05,26.06381259]
[1766114216102,49.18,120.13,120.05,26.01]
[1766114216912,0.05901549,120.1,120.08,0.06213182]
[1766114217301,0.05901549,120.1,120.08,0.00213182]
[1766114217508,0.05901549,120.1,120.02,26.01]
[1766114217707,116.6178,120.12,120.02,26.01]
[1766114218511,0.05899154,120.08,120.06,0.06013899]
[1766114219813,0.05899154,120.08,119.99,7.5046]
[1766114219814,49.18,120.07,120.0,26.01]
[1766114220003,49.18,120.11,120.01,26.01]
[1766114220199,64.75,120.11,120.01,26.01]
[1766114220715,64.75,120.11,120.02,26.01]
[1766114220912,0.05289401,120.08,120.05,0.05750977]
[1766114222718,0.05289401,120.08,119.98,25.45]
[1766114222907,49.18,120.11,120.0,25.45]
[1766114223308,64.45,120.11,120.0,25.45]
[1766114223711,0.05913825,120.07,120.03,25.45]
[1766114223907,15.33,120.12,120.03,25.45]
[1766114224809,0.05811873,120.09,120.06,0.05508551]
[1766114225013,6.31245401,120.14,120.06,0.05508551]
[1766114225014,63.00885401,120.14,120.06,0.05508551]
[1766114225317,63.00885401,120.14,120.05,25.45]
[1766114225318,13.80885401,120.14,120.05,25.45]
[1766114225518,63.00885401,120.14,120.05,25.45]
[1766114225819,7.4969,120.13,120.05,25.45]
[1766114226017,0.05442836,120.1,120.08,0.05382052]
[1766114226614,49.2,120.14,120.08,0.05382052]
[1766114227415,0.05702661,120.12,120.08,0.05382052]
[1766114228215,15.36702661,120.12,120.08,0.00382052]
[1766114228923,0.05702661,120.12,120.08,0.00382052]
[1766114230113,7.55442661,120.12,120.08,0.00382052]
[1766114230516,0.05702661,120.12,120.08,0.00382052]
[1766114231721,7.4947,120.17,120.09,32.949]
[1766114231926,15.36,120.19,120.1,25.45]
[1766114232514,22.8533,120.19,120.11,7.4979]
[1766114232827,0.05453503,120.16,120.14,0.05746084]
[1766114238223,7.4916,120.22,120.14,31.57326084]
[1766114238419,15.31,120.26,120.15,24.02]
[1766114238616,122.79595401,120.27,120.15,24.02]
[1766114238617,64.51,120.25,120.15,24.02]
[1766114239019,7.4903,120.24,120.16,7.4947]
[1766114239218,0.05607987,120.21,120.19,0.06080521]
[1766114239431,0.05607987,120.21,120.19,0.00080521]
[1766114240633,56.6896,120.25,120.19,0.00080521]
[1766114241331,49.2,120.25,120.19,0.00080521]
[1766114241719,0.058198,120.23,120.19,0.00080521]
[1766114244535,7.548798,120.23,120.19,0.00080521]
[1766114245124,71.9711,120.22,120.19,0.00080521]
[1766114245328,64.48,120.22,120.19,0.00080521]
[1766114246334,22.7718,120.21,120.14,24.02]
[1766114247230,0.06321585,120.19,120.16,0.05361371]
[1766114249535,15.22,120.18,120.09,140.6658]
[1766114250034,15.22,120.18,120.09,24.02]
[1766114250535,0.05342633,120.15,120.12,0.05357526]
[1766114252229,0.05342633,120.15,120.12,0.00357526]
[1766114253233,22.69892633,120.15,120.12,0.00357526]
[1766114254236,15.20342633,120.15,120.12,0.00357526]
[1766114256343,22.69892633,120.15,120.12,0.00357526]
[1766114257943,15.14,120.14,120.12,0.00357526]
[1766114258142,15.14,120.13,120.05,116.6919]
[1766114258338,15.14,120.13,120.05,140.7119]
[1766114259038,0.05443702,120.1,120.08,0.06040883]
[1766114261143,7.4961,120.15,120.08,0.06040883]
[1766114261348,7.4961,120.15,120.07,24.02]
[1766114261548,15.18,120.19,120.09,24.02]
[1766114261740,15.18,120.19,120.1,24.02]
[1766114262248,0.06090177,120.16,120.13,0.0536881]
[1766114262449,0.00090177,120.16,120.13,7.5503881]
[1766114263038,0.00090177,120.16,120.13,0.0536881]
[1766114264547,15.21090177,120.16,120.13,0.0036881]
[1766114265146,64.41090177,120.16,120.13,0.0036881]
[1766114265548,49.20090177,120.16,120.13,0.0036881]
[1766114265944,0.00090177,120.16,120.13,0.0036881]
[1766114271248,15.19090177,120.16,120.13,0.0036881]
[1766114272351,0.00090177,120.16,120.13,0.0036881]
[1766114273750,15.19,120.14,120.07,23.53]
[1766114274955,0.05483996,120.12,120.09,0.0531332]
[1766114275547,15.18,120.17,120.09,23.5831332]
[1766114275746,15.18,120.17,120.09,23.53]
[1766114276555,0.05641873,120.14,120.12,0.05914389]
[1766114276953,15.22641873,120.14,120.08,7.4992]
[1766114277153,15.22641873,120.14,120.05,23.53]
[1766114277353,15.17,120.14,120.06,23.53]
[1766114278063,0.06182817,120.11,120.09,0.05927398]
[1766114280365,15.22,120.17,120.09,23.58927398]
[1766114280662,64.42,120.2,120.1,23.53]
[1766114280855,15.22,120.19,120.1,23.53]
[1766114281055,7.4937,120.18,120.11,7.4979]
[1766114281263,0.06234016,120.16,120.13,0.06006277]
[1766114282859,22.71734016,120.16,120.13,6.277e-05]
[1766114283470,15.15,120.14,120.07,23.53]
[1766114284266,7.4968,120.13,120.07,23.53]
[1766114284464,0.0636052,120.11,120.09,0.06233855]
[1766114288561,0.0036052,120.11,120.09,0.06233855]
[1766114294569,0.0036052,120.11,120.09,24.38233855]
[1766114295661,0.0036052,120.11,120.09,31.88143855]
[1766114296672,0.0036052,120.11,120.1,31.8186]
[1766114296967,15.19,120.17,120.1,24.32]
[1766114297565,15.19,120.17,120.1,31.8184]
[1766114297965,22.6842,120.17,120.1,31.8184]
[1766114298165,0.06314875,120.15,120.12,0.06009861]
[1766114300772,15.24,120.21,120.13,24.32]
[1766114301176,64.44,120.21,120.13,24.32]
[1766114301770,49.2,120.21,120.16,0.06094005]
[1766114302076,0.00456548,120.18,120.16,0.06094005]
[1766114303876,15.23456548,120.18,120.16,0.00094005]
[1766114304276,22.72826548,120.18,120.16,0.00094005]
[1766114304481,15.23456548,120.18,120.16,0.00094005]
[1766114305775,0.00456548,120.18,120.16,0.00094005]
[1766114312282,15.21,120.17,120.09,24.32]
[1766114312675,15.21,120.14,120.06,7.5005]
[1766114312988,15.21,120.12,120.04,24.32]
[1766114313189,22.7074,120.12,120.04,24.32]
[1766114313387,0.05674798,120.09,120.07,0.06037633]
[1766114314989,15.20674798,120.09,120.01,31.8237]
[1766114315292,49.2,120.08,120.01,31.8237]
[1766114315894,49.2,120.08,120.01,24.32]
[1766114316078,0.0581617,120.06,120.03,0.0612208]
[1766114316688,15.2,120.11,120.04,24.32]
[1766114316894,49.2,120.1,120.04,24.32]
[1766114317588,0.05702347,120.08,120.06,0.06260161]
[1766114321485,0.05702347,120.08,120.06,0.00260161]
[1766114322489,0.05702347,120.08,120.02,24.32]
[1766114322694,22.69712347,120.08,120.0,31.8043]
[1766114322995,22.69712347,120.08,120.01,31.8041]
[1766114322996,15.14,120.08,120.01,31.8041]
[1766114323384,7.4994,120.09,120.02,24.3]
[1766114323596,0.06382116,120.07,120.04,0.06365972]
[1766114324691,0.00382116,120.07,120.04,24.36365972]
[1766114328200,7.497,120.13,120.06,7.5011]
[1766114328507,64.41,120.14,120.04,24.3]
[1766114329300,0.05631166,120.1,120.08,0.06325678]
[1766114330507,0.05631166,120.1,120.08,0.00325678]
[1766114332504,0.05631166,120.1,120.04,31.8023]
[1766114332805,0.05631166,120.1,120.04,24.3]
[1766114333591,0.05631166,120.1,120.06,0.05763456]
[1766114334210,15.13,120.13,120.06,31.85863456]
[1766114334396,15.13,120.13,120.06,24.3]
[1766114335207,0.0528338,120.11,120.08,0.06309637]
[1766114335501,49.22,120.14,120.08,24.36309637]
[1766114336304,49.22,120.14,120.09,7.4991]
[1766114336493,0.05672661,120.13,120.09,7.4991]
[1766114337106,0.05672661,120.13,120.08,31.86289637]
[1766114338506,45.27672661,120.14,120.08,31.86289637]
[1766114339596,0.06372881,120.12,120.08,31.86289637]
[1766114340908,0.00372881,120.12,120.09,31.7989]
[1766114341107,16.68084333,120.19,120.1,24.3]
[1766114341411,65.90084333,120.19,120.1,24.3]
[1766114342094,65.90084333,120.19,120.09,116.6498]
[1766114342095,0.05528989,120.16,120.13,0.05631]
[1766114343803,64.5,120.19,120.13,24.16631]
[1766114344211,71.993,120.19,120.13,24.16631]
[1766114344406,71.993,120.19,120.13,0.05631]
[1766114344407,49.22,120.19,120.13,0.05631]
[1766114344609,7.4962,120.14,120.08,24.11]
[1766114344810,15.27,120.14,120.06,24.11]
[1766114345008,21.60531404,120.17,120.08,24.11]
[1766114345504,15.27,120.17,120.11,0.05485302]
[1766114345709,0.05899763,120.14,120.11,0.05485302]
[1766114348111,0.05899763,120.14,120.11,0.00485302]
[1766114349924,22.7042,120.18,120.11,24.11485302]
[1766114350422,22.7042,120.18,120.11,31.61275302]
[1766114350805,7.4942,120.17,120.11,31.61275302]
[1766114351030,0.05708034,120.15,120.11,31.61275302]
[1766114352422,15.32708034,120.15,120.11,0.00485302]
[1766114352723,22.7668,120.13,120.05,24.11]
[1766114353026,49.2,120.14,120.06,25.5]
[1766114353514,49.2,120.14,120.08,25.5]
[1766114353721,49.2,120.14,120.06,116.6821]
[1766114353722,49.2,120.14,120.09,25.5539414]
[1766114354624,22.7942,120.18,120.09,25.5539414]
[1766114354826,23.44,120.21,120.11,25.5]
[1766114355015,72.64,120.21,120.11,25.5]
[1766114355522,72.64,120.21,120.13,25.5]
[1766114355728,0.06268094,120.18,120.16,0.05877166]
[1766114358124,0.06268094,120.18,120.13,25.5]
[1766114358328,0.06268094,120.18,120.1,82.1781]
[1766114358630,7.4938,120.18,120.1,82.1781]
[1766114359019,0.05941077,120.15,120.13,0.05426157]
[1766114360927,23.44,120.2,120.13,25.55426157]
[1766114361930,0.06049582,120.18,120.13,33.05096157]
[1766114362130,0.06049582,120.18,120.13,25.55426157]
[1766114362333,0.06049582,120.18,120.13,33.05096157]
[1766114363130,0.06049582,120.18,120.13,25.55426157]
[1766114366040,0.06049582,120.18,120.13,33.05096157]
[1766114366342,0.06049582,120.18,120.14,25.5]
[1766114367141,56.6912,120.22,120.15,32.9951]
[1766114367437,49.2,120.22,120.15,25.5]
[1766114367640,23.44,120.21,120.14,7.4956]
[1766114368244,0.05659546,120.19,120.16,0.062394]
[1766114368434,116.5118,120.24,120.16,0.062394]
[1766114368435,23.44,120.26,120.16,25.562394]
[1766114368744,23.44,120.26,120.15,116.5916]
[1766114368745,23.44,120.26,120.17,0.0038]
[1766114369044,23.44,120.23,120.14,25.5]
[1766114369431,23.44,120.23,120.17,0.06367483]
[1766114369632,23.44,120.26,120.17,25.56367483]
[1766114369838,27.59651938,120.2,120.11,25.5]
[1766114370335,23.44,120.2,120.12,25.5]
[1766114370538,0.05672397,120.17,120.15,0.06068088]
[1766114371045,0.05672397,120.17,120.12,25.5]
[1766114371842,49.2,120.2,120.13,25.5]
[1766114372236,465.9248,120.27,120.15,25.5]
[1766114372237,76.79651938,120.25,120.15,25.5]
[1766114372645,23.44,120.24,120.15,25.5]
[1766114372947,0.05894653,120.21,120.18,0.06026986]
[1766114373453,23.49894653,120.21,120.13,28.9964]
[1766114373745,23.44,120.18,120.1,21.5]
[1766114374436,0.05978699,120.15,120.13,0.05754399]
[1766114376745,23.44,120.18,120.13,0.05754399]
[1766114377142,23.44,120.16,120.08,49.16]
[1766114377341,23.44,120.12,120.04,21.5]
[1766114377545,27.59651938,120.12,120.04,21.5]
[1766114377945,23.44,120.12,120.04,21.5]
[1766114378147,0.05738592,120.09,120.07,0.05389885]
[1766114381748,0.05738592,120.09,120.07,0.00389885]
[1766114386349,24.67738592,120.09,120.0,18.43]
[1766114386555,24.62,120.09,120.0,18.43]
[1766114387257,0.05575573,120.06,120.03,0.06367141]
[1766114388648,24.67575573,120.06,119.98,25.416]
[1766114388849,24.62,120.06,119.99,17.91]
[1766114389051,73.84,120.08,119.99,17.91]
[1766114389255,7.5008,120.07,120.0,25.1247]
[1766114389758,0.06059709,120.05,120.02,0.05553937]
[1766114390949,0.06059709,120.05,119.97,74.0362]
[1766114391154,24.62,120.04,119.97,17.33]
[1766114391361,24.62,120.04,119.94,17.05]
[1766114391756,32.123,120.03,119.96,7.507]
[1766114392164,0.0583999,120.01,119.98,0.06289082]
[1766114392355,0.0583999,120.01,119.94,17.05]
[1766114392554,7.5049,120.0,119.94,17.05]
[1766114392867,7.5049,120.0,119.93,56.7088]
[1766114393067,24.62,120.0,119.91,104.83]
[1766114393281,0.06120338,119.97,119.94,0.06091253]
[1766114394270,24.68120338,119.97,119.87,133.2076]
[1766114394568,24.62,119.97,119.87,16.34]
[1766114394864,24.62,119.96,119.88,16.34]
[1766114395268,24.62,119.96,119.91,0.06151431]
[1766114395467,0.05625599,119.93,119.91,0.06151431]
[1766114396063,0.05625599,119.93,119.85,181.8911]
[1766114396261,24.62,119.94,119.87,7.5125]
[1766114396669,24.62,119.94,119.87,15.87]
[1766114397169,0.05262155,119.92,119.89,0.05840576]
[1766114397568,24.67262155,119.92,119.84,15.6]
[1766114397762,24.62,119.92,119.82,15.66]
[1766114397962,24.62,119.9,119.82,23.1757]
[1766114398669,0.05753332,119.87,119.85,0.05429735]
[1766114398866,24.62,119.93,119.85,0.05429735]
[1766114399067,24.62,119.93,119.84,7.5144]
[1766114399863,0.060868,119.9,119.87,0.06000344]
[1766114400266,24.62,119.97,119.88,7.512]
[1766114400465,24.62,119.97,119.87,14.78]
[1766114401057,24.62,119.97,119.88,14.53]